bitfinex/quotes_SOLUSD_20260224
["timestamp","ask_amount","ask_price","bid_price","bid_amount"]
[1771923491905,0.51414344,77.189,77.171,13.45084823]
[1771923495749,0.51414344,77.189,77.17,0.2]
[1771923495907,5.15440268,77.17,77.16,0.2]
[1771923496314,0.51414344,77.172,77.16,0.2]
[1771923498823,0.51414344,77.169,77.153,0.49272116]
[1771923499010,0.51414344,77.169,77.15,13.16174594]
[1771923499404,0.51414344,77.169,77.15,13.6544671]
[1771923499810,0.51414344,77.169,77.15,0.2]
[1771923500136,0.51414344,77.159,77.15,0.2]
[1771923504629,12.95925595,77.165,77.15,0.2]
[1771923504928,0.46831969,77.164,77.15,0.2]
[1771923505324,12.95957907,77.163,77.15,0.2]
[1771923505529,0.49222212,77.162,77.15,0.2]
[1771923506235,0.49222212,77.159,77.14,0.2]
[1771923506434,5.16869721,77.18,77.151,0.472264]
[1771923506612,0.49222212,77.179,77.141,12.96327504]
[1771923506935,0.49222212,77.179,77.141,45.37146264]
[1771923508533,0.49222212,77.177,77.142,0.472264]
[1771923510634,0.49222212,77.175,77.144,0.472264]
[1771923511954,0.49222212,77.175,77.151,0.472264]
[1771923513327,5.16869721,77.19,77.161,0.472264]
[1771923513531,0.49222212,77.189,77.161,0.472264]
[1771923514034,0.49222212,77.192,77.171,0.472264]
[1771923514430,32.38216443,77.203,77.171,0.472264]
[1771923514431,0.49222212,77.196,77.171,0.472264]
[1771923517136,12.95420687,77.195,77.171,0.472264]
[1771923517341,0.49222212,77.194,77.171,0.472264]
[1771923517719,0.49222212,77.189,77.162,13.43191804]
[1771923517919,0.49222212,77.189,77.163,0.472264]
[1771923518941,0.49222212,77.179,77.158,13.43258697]
[1771923519144,0.49222212,77.179,77.159,0.472264]
[1771923519462,0.49222212,77.179,77.16,12.96008294]
[1771923519736,0.49222212,77.178,77.154,0.472264]
[1771923522321,12.95722818,77.177,77.156,0.472264]
[1771923523218,13.4494503,77.177,77.156,0.472264]
[1771923523432,0.49222212,77.176,77.156,0.472264]
[1771923525928,12.95756397,77.175,77.156,0.472264]
[1771923527741,0.49222212,77.175,77.156,0.472264]
[1771923528644,0.49222212,77.175,77.157,0.472264]
[1771923531926,13.44987615,77.175,77.157,0.472264]
[1771923532148,0.49222212,77.174,77.157,0.472264]
[1771923538937,12.95789978,77.173,77.157,0.472264]
[1771923539140,5.16869721,77.17,77.142,0.47528395]
[1771923539339,0.50285997,77.169,77.142,0.47528395]
[1771923542842,103.9,77.202,64.451,0.19610562]
[1771923542843,0.50285997,77.149,77.122,0.47528395]
[1771923544742,0.50285997,77.157,77.131,0.47528395]
[1771923545964,45.35617556,77.167,77.141,0.47528395]
[1771923545965,0.50285997,77.162,77.141,0.47528395]
[1771923547244,0.50285997,77.162,77.142,12.96310699]
[1771923547445,0.50285997,77.162,77.143,0.47528395]
[1771923550067,0.50285997,77.162,77.145,0.47528395]
[1771923550454,0.50285997,77.16,77.141,0.47528395]
[1771923551549,5.16869721,77.16,77.126,0.47528395]
[1771923551751,6.77340481,77.189,77.12,5.36869721]
[1771923551752,0.50285997,77.147,77.121,13.44192079]
[1771923552251,0.50285997,77.139,77.12,0.2]
[1771923553775,0.50285997,77.137,77.12,0.67528395]
[1771923554067,0.50285997,77.137,77.121,0.47528395]
[1771923555569,0.50285997,77.149,77.122,0.47528395]
[1771923556157,0.50285997,77.147,77.124,0.47528395]
[1771923557077,0.50285997,77.159,77.131,0.47528395]
[1771923558573,0.50285997,77.157,77.133,0.47528395]
[1771923561158,0.50285997,77.157,77.135,0.47528395]
[1771923563172,5.17108735,77.16,77.124,0.49111544]
[1771923563173,0.48078312,77.153,77.124,0.49111544]
[1771923563376,0.48078312,77.153,77.131,0.49111544]
[1771923565875,0.4627238,77.158,77.133,0.5003178]
[1771923566476,0.4627238,77.167,77.141,0.5003178]
[1771923566673,0.4627238,77.172,77.141,0.5003178]
[1771923566861,0.4627238,77.172,77.151,0.5003178]
[1771923568567,0.4627238,77.172,77.152,12.96142679]
[1771923570082,0.4627238,77.169,77.137,0.5003178]
[1771923572007,0.4627238,77.167,77.133,13.46493735]
[1771923572488,0.4627238,77.167,77.134,0.5003178]
[1771923575079,0.4627238,77.165,77.136,0.5003178]
[1771923576491,0.4627238,77.164,77.138,0.5003178]
[1771923581695,0.4627238,77.164,77.14,0.5003178]
[1771923581893,0.4627238,77.164,77.141,0.5003178]
[1771923582700,0.4627238,77.162,77.141,0.5003178]
[1771923584693,0.4627238,77.167,77.142,12.96310699]
[1771923584879,0.4627238,77.167,77.143,0.5003178]
[1771923587603,13.42179904,77.166,77.143,0.5003178]
[1771923587900,13.42179904,77.166,77.145,0.5003178]
[1771923588290,12.95907524,77.166,77.145,0.5003178]
[1771923588498,0.4627238,77.165,77.145,0.5003178]
[1771923589104,0.4627238,77.17,77.151,0.5003178]
[1771923589397,0.4627238,77.179,77.151,0.5003178]
[1771923590602,0.4627238,77.178,77.152,12.96142679]
[1771923590776,0.4627238,77.178,77.151,0.5003178]
[1771923590777,0.28432314,77.177,77.142,12.96308186]
[1771923590981,0.4627238,77.159,77.136,0.5003178]
[1771923591300,0.4627238,77.149,77.127,0.5003178]
[1771923592802,5.17108735,77.15,77.121,0.5003178]
[1771923592803,0.4627238,77.139,77.121,0.5003178]
[1771923592997,0.4627238,77.146,77.122,0.5003178]
[1771923593205,0.4627238,77.158,77.122,0.5003178]
[1771923593497,0.4627238,77.158,77.131,0.5003178]
[1771923595899,0.45524353,77.156,77.131,0.5003178]
[1771923596696,0.45524353,77.149,77.128,0.47776801]
[1771923597081,0.45524353,77.149,77.128,13.44322802]
[1771923597395,0.45524353,77.149,77.129,0.47776801]
[1771923599099,0.45524353,77.147,77.12,0.2]
[1771923599395,0.45524353,77.147,77.12,0.67776801]
[1771923599582,0.45524353,77.147,77.121,0.47776801]
[1771923600197,0.45524353,77.145,77.121,0.47776801]
[1771923600794,0.45524353,77.145,77.122,0.47776801]
[1771923601405,0.45524353,77.139,77.12,0.2]
[1771923601705,0.45524353,77.139,77.112,0.47776801]
[1771923602086,0.45524353,77.139,77.1,5.17195013]
[1771923602087,5.17195013,77.13,77.105,0.47776801]
[1771923602291,0.45524353,77.127,77.106,13.44692734]
[1771923602598,0.45524353,77.127,77.107,0.47776801]
[1771923603487,0.45524353,77.127,77.102,0.47776801]
[1771923603795,0.45524353,77.119,77.091,0.47776801]
[1771923604607,0.45524353,77.119,77.094,0.47776801]
[1771923605406,0.45524353,77.117,77.094,0.47776801]
[1771923605710,0.45524353,77.117,77.09,0.67776801]
[1771923606002,0.45524353,77.117,77.091,12.97168281]
[1771923606208,0.45524353,77.117,77.092,0.47776801]
[1771923606896,0.45524353,77.144,77.093,45.39971203]
[1771923607105,0.45524353,77.139,77.105,0.47776801]
[1771923607306,0.45524353,77.134,77.105,0.47776801]
[1771923608203,12.96159479,77.151,77.105,0.47776801]
[1771923608412,0.45524353,77.149,77.121,0.47776801]
[1771923609521,13.41734235,77.148,77.123,0.47776801]
[1771923609703,0.45524353,77.147,77.123,0.47776801]
[1771923609915,0.45524353,77.139,77.098,0.47776801]
[1771923610110,0.45524353,77.139,77.054,51.91146543]
[1771923610111,0.45524353,77.119,77.095,0.47776801]
[1771923612511,0.45524353,77.109,77.091,0.47776801]
[1771923612913,0.45524353,77.109,77.09,0.2]
[1771923613210,0.45524353,77.109,77.09,0.67776801]
[1771923613413,0.28432314,77.139,77.09,0.67776801]
[1771923613414,0.45524353,77.115,77.091,0.47776801]
[1771923614998,12.96601013,77.125,77.101,0.47776801]
[1771923616508,5.17195013,77.13,77.101,0.47776801]
[1771923616509,12.96529191,77.129,77.101,13.44762595]
[1771923616716,12.96529191,77.129,77.102,0.47776801]
[1771923616917,13.42053544,77.129,77.102,0.47776801]
[1771923617105,0.45524353,77.128,77.102,0.47776801]
[1771923617310,0.45524353,77.119,77.097,13.44831792]
[1771923617915,0.45524353,77.119,77.098,0.47776801]
[1771923618599,0.45524353,77.119,77.1,0.47776801]
[1771923619799,0.45524353,77.119,77.102,0.47776801]
[1771923620615,0.45524353,77.119,77.096,0.47776801]
[1771923621826,0.45524353,77.119,77.097,12.9706733]
[1771923622017,0.45524353,77.119,77.098,0.47776801]
[1771923623021,12.96658988,77.122,77.098,0.47776801]
[1771923623403,0.45524353,77.121,77.098,0.47776801]
[1771923625126,0.45524353,77.121,77.1,0.48353734]
[1771923627522,0.45524353,77.121,77.101,12.97000038]
[1771923627730,0.45524353,77.121,77.102,0.48353734]
[1771923631736,45.37852169,77.129,77.102,0.48353734]
[1771923632049,0.48194379,77.128,77.102,0.48353734]
[1771923635311,0.48194379,77.135,77.104,0.48353734]
[1771923635528,0.48194379,77.135,77.111,0.48353734]
[1771923635911,12.96243486,77.146,77.121,0.48353734]
[1771923636231,12.96243486,77.146,77.103,45.39382384]
[1771923636232,12.96139507,77.153,77.131,0.48353734]
[1771923636732,0.48194379,77.149,77.126,0.48353734]
[1771923637225,0.48194379,77.149,77.128,0.48353734]
[1771923638421,0.48194379,77.139,77.1,5.17553502]
[1771923639122,0.28432314,77.146,77.1,5.17553502]
[1771923639123,0.48194379,77.129,77.1,5.17553502]
[1771923640425,0.48194379,77.129,77.102,0.48353734]
[1771923641722,0.48194379,77.128,77.102,0.48353734]
[1771923643334,0.48194379,77.128,77.104,0.48353734]
[1771923643545,0.48194379,77.119,77.094,0.48353734]
[1771923643717,12.96562811,77.127,77.094,0.48353734]
[1771923643918,5.17553502,77.14,77.111,0.48353734]
[1771923644138,0.48194379,77.139,77.111,0.48353734]
[1771923646346,0.48194379,77.137,77.111,0.48353734]
[1771923649136,12.9637792,77.138,77.111,0.48353734]
[1771923649137,0.48194379,77.135,77.111,0.48353734]
[1771923654748,0.48194379,77.133,77.111,0.48353734]
[1771923656754,13.42393522,77.132,77.111,0.48353734]
[1771923657750,0.45914759,77.135,77.113,0.47883394]
[1771923658652,0.45914759,77.135,77.115,0.47883394]
[1771923658833,13.42358923,77.135,77.115,0.47883394]
[1771923659232,0.45914759,77.134,77.115,0.47883394]
[1771923660646,12.96461955,77.133,77.115,0.47883394]
[1771923660845,0.45914759,77.132,77.115,0.47883394]
[1771923662752,0.45914759,77.132,77.109,0.47883394]
[1771923663451,0.45914759,77.119,77.09,0.2]
[1771923663643,0.28432314,77.129,77.091,0.47883394]
[1771923663644,0.45914759,77.109,77.091,0.47883394]
[1771923664151,0.45914759,77.109,77.09,13.17183518]
[1771923664152,0.45914759,77.099,77.09,0.2]
[1771923666741,12.97048657,77.099,77.09,0.2]
[1771923667054,0.45914759,77.098,77.09,0.2]
[1771923669755,0.45914759,77.096,77.08,0.2]
[1771923669962,0.45914759,77.089,77.08,0.2]
[1771923671757,0.45914759,77.088,77.07,0.2]
[1771923671961,0.28432314,77.078,77.06,1e-08]
[1771923672160,0.45914759,77.045,77.023,0.47883394]
[1771923672339,0.45914759,77.059,77.023,0.47883394]
[1771923672539,6.759,77.067,77.041,0.47883394]
[1771923672856,12.97216384,77.089,77.052,0.47883394]
[1771923673030,12.97216384,77.089,77.061,0.47883394]
[1771923674562,12.97033683,77.099,77.063,0.47883394]
[1771923674736,12.97033683,77.099,77.071,0.47883394]
[1771923675956,13.34395066,77.099,77.071,0.47883394]
[1771923676359,0.37361383,77.089,77.071,0.47883394]
[1771923676558,5.17553502,77.09,77.071,0.47883394]
[1771923676755,0.37358458,77.094,77.071,0.47883394]
[1771923677843,12.97033683,77.099,77.071,0.47883394]
[1771923678038,12.97033683,77.099,77.073,0.47883394]
[1771923679356,12.97033683,77.099,77.07,3.7779595]
[1771923681459,12.97033683,77.099,77.071,0.47883394]
[1771923684246,0.47668458,77.098,77.071,0.47883394]
[1771923686267,12.9706733,77.097,77.071,0.47883394]
[1771923687569,13.45316162,77.097,77.071,0.47883394]
[1771923687968,32.42201358,77.109,77.07,5.17884058]
[1771923687969,0.48248832,77.102,77.073,0.47456153]
[1771923688876,0.48248832,77.08,77.062,0.47456153]
[1771923689374,0.48248832,77.085,77.062,0.47456153]
[1771923689760,12.97286077,77.084,77.062,0.47456153]
[1771923690570,0.48248832,77.083,77.062,0.47456153]
[1771923691386,0.48248832,77.079,77.057,0.47456153]
[1771923691674,0.48248832,77.077,77.057,0.47456153]
[1771923691866,12.97318399,77.083,77.058,0.47456153]
[1771923692086,13.45567231,77.083,77.058,0.47456153]
[1771923692571,0.48248832,77.082,77.058,0.47456153]
[1771923692970,0.48248832,77.082,77.059,0.47456153]
[1771923694572,0.48248832,77.093,77.071,0.47456153]
[1771923695081,0.48248832,77.089,77.071,0.47456153]
[1771923699078,0.48248832,77.104,77.071,0.47456153]
[1771923699274,0.48248832,77.099,77.073,0.47456153]
[1771923699478,0.48248832,77.089,77.068,0.47456153]
[1771923699784,0.48248832,77.079,77.053,12.97807151]
[1771923700865,13.45534968,77.084,77.053,12.97807151]
[1771923701065,12.97286136,77.084,77.053,12.97807151]
[1771923701369,0.48248832,77.083,77.053,12.97807151]
[1771923701681,0.48248832,77.083,77.054,0.47456153]
[1771923704565,0.48248832,77.081,77.061,0.47456153]
[1771923705978,13.45602231,77.08,77.064,0.2]
[1771923706774,13.45602231,77.08,77.074,0.2]
[1771923706969,0.48248832,77.079,77.074,0.2]
[1771923707171,12.97183501,77.091,77.075,0.47456153]
[1771923707364,13.45365266,77.095,77.075,0.47456153]
[1771923707767,0.48248832,77.094,77.075,0.47456153]
[1771923708282,12.97134629,77.093,77.075,0.47456153]
[1771923708778,0.48248832,77.089,77.065,0.47456153]
[1771923708986,0.48248832,77.089,77.064,0.2]
[1771923710686,0.48248832,77.087,77.064,0.67456153]
[1771923711788,0.48248832,77.087,77.074,0.2]
[1771923712767,0.48248832,77.085,77.074,0.2]
[1771923713886,12.97286077,77.084,77.074,0.2]
[1771923715386,5.17884058,77.08,77.064,0.2]
[1771923715878,12.97319737,77.082,77.064,0.2]
[1771923716081,0.49147971,77.081,77.064,0.2]
[1771923716788,0.49147971,77.079,77.064,0.2]
[1771923718195,0.49147971,77.079,77.064,0.68086746]
[1771923718490,0.49147971,77.079,77.065,0.48086746]
[1771923719276,0.49147971,77.079,77.074,0.2]
[1771923719878,12.97387062,77.078,77.074,0.2]
[1771923720091,12.77387062,77.078,77.074,0.2]
[1771923721000,12.57387062,77.078,77.065,0.48086746]
[1771923721589,13.06535033,77.078,77.065,0.48086746]
[1771923721982,0.49147971,77.078,77.065,0.48086746]
[1771923722575,0.49147971,77.084,77.065,0.48086746]
[1771923723498,0.49147971,77.082,77.065,0.48086746]
[1771923726085,12.97336568,77.081,77.066,0.48086746]
[1771923726478,0.49147971,77.08,77.066,0.48086746]
[1771923726676,0.49147971,77.079,77.054,0.2]
[1771923726899,0.49147971,77.069,77.046,0.48086746]
[1771923727288,0.29147971,77.059,77.034,0.48086746]
[1771923727996,5.17884058,77.07,77.041,0.48086746]
[1771923728194,0.2,77.085,77.052,0.48086746]
[1771923728777,0.2,77.085,77.061,0.48086746]
[1771923729403,0.49147971,77.084,77.061,0.48086746]
[1771923732300,12.97302907,77.083,77.061,0.48086746]
[1771923732902,12.97302907,77.083,77.063,0.48086746]
[1771923734808,0.2,77.074,77.063,0.48086746]
[1771923735607,0.2,77.064,77.063,0.48086746]
[1771923735807,0.2,77.074,77.061,0.48086746]
[1771923736305,13.17298971,77.084,77.062,0.48086746]
[1771923736503,0.49147971,77.101,77.071,0.48086746]
[1771923737209,0.49147971,77.099,77.071,0.48086746]
[1771923737612,0.49147971,77.104,77.073,0.48086746]
[1771923738194,12.96934286,77.105,77.073,0.48086746]
[1771923738904,13.46082257,77.105,77.081,0.48086746]
[1771923740009,0.49147971,77.125,77.091,0.48086746]
[1771923742213,0.49147971,77.123,77.093,0.48086746]
[1771923742395,0.49147971,77.123,77.101,0.48086746]
[1771923743314,12.96613246,77.124,77.101,0.48086746]
[1771923744985,12.96562811,77.127,77.101,0.48086746]
[1771923745191,0.48982247,77.126,77.101,0.48086746]
[1771923747911,0.48982247,77.119,77.096,0.46563089]
[1771923748108,0.48982247,77.119,77.1,5.17398956]
[1771923748293,0.48982247,77.119,77.101,0.46563089]
[1771923752002,0.48982247,77.118,77.101,0.46563089]
[1771923752215,0.48982247,77.118,77.102,0.46563089]
[1771923758827,0.48982247,77.123,77.104,0.46563089]
[1771923761620,0.48982247,77.109,77.083,0.46563089]
[1771923762626,18.13919122,77.13,77.101,0.46563089]
[1771923763013,0.28432314,77.143,77.11,5.17398956]
[1771923763327,5.17398956,77.14,77.111,0.46563089]
[1771923763516,12.96361114,77.139,77.111,0.46563089]
[1771923764513,0.48982247,77.136,77.111,0.46563089]
[1771923765330,12.96309606,77.143,77.121,0.46563089]
[1771923765521,0.48982247,77.142,77.121,0.46563089]
[1771923767228,0.48982247,77.14,77.121,0.46563089]
[1771923769736,0.48982247,77.148,77.122,0.46563089]
[1771923770927,5.17398956,77.14,77.118,0.46563089]
[1771923771135,0.48982247,77.139,77.118,0.46563089]
[1771923774925,0.45491757,77.169,77.131,0.45029577]
[1771923775120,0.45491757,77.169,77.141,0.45029577]
[1771923776541,0.45491757,77.169,77.151,0.45029577]
[1771923777622,0.45491757,77.169,77.152,12.96142679]
[1771923777826,0.45491757,77.169,77.152,13.41172256]
[1771923778730,0.45491757,77.169,77.152,0.45029577]
[1771923779845,0.2,77.17,77.152,0.45029577]
[1771923780140,0.5,77.189,77.16,5.17398956]
[1771923780342,0.5,77.189,77.17,5.17398956]
[1771923782557,0.5,77.189,77.171,12.9582356]
[1771923784123,0.1,77.2,77.18,5.17398956]
[1771923784320,0.1,77.2,77.19,5.17398956]
[1771923784847,0.2,77.21,77.19,5.17398956]
[1771923785228,0.2,77.21,77.2,5.17398956]
[1771923786041,0.2,77.21,77.2,18.1272146]
[1771923788248,0.1,77.22,77.21,5.17398956]
[1771923788448,0.5,77.235,77.21,5.17398956]
[1771923788846,0.5,77.233,77.2,18.1272146]
[1771923789743,0.5,77.233,77.21,5.17398956]
[1771923790446,12.94800082,77.232,77.21,5.17398956]
[1771923790629,0.5,77.231,77.21,5.17398956]
[1771923792047,0.5,77.231,77.211,0.03095084]
[1771923792344,0.5,77.231,77.212,0.03095084]
[1771923792650,0.5,77.246,77.222,0.03715857]
[1771923792851,0.5,77.246,77.23,5.17398956]
[1771923793849,0.1,77.25,77.231,0.04327235]
[1771923794744,0.6,77.25,77.231,0.04327235]
[1771923795344,0.6,77.25,77.23,5.17398956]
[1771923796052,0.5,77.248,77.23,5.17398956]
[1771923797135,0.5,77.248,77.223,12.94941955]
[1771923797351,0.5,77.248,77.212,0.06122766]
[1771923798230,12.94548655,77.247,77.212,0.06122766]
[1771923798433,0.5,77.246,77.22,5.17398956]
[1771923799348,12.94582173,77.245,77.22,5.17398956]
[1771923799638,0.6,77.25,77.23,5.17398956]
[1771923799954,0.5,77.248,77.222,0.07856737]
[1771923801246,0.5,77.248,77.23,5.17398956]
[1771923801445,0.5,77.246,77.214,0.08979244]
[1771923801755,0.5,77.246,77.21,5.17398956]
[1771923802454,45.30920294,77.247,77.18,103.5]
[1771923802455,0.5,77.229,77.2,5.17398956]
[1771923803347,0.5,77.229,77.2,5.1611352]
[1771923804056,0.50423864,77.227,77.2,5.1611352]
[1771923805656,0.50400724,77.225,77.201,12.95320008]
[1771923805868,0.50400724,77.225,77.21,5.1611352]
[1771923806340,5.1611352,77.24,77.21,5.1611352]
[1771923806541,5.2611352,77.25,77.221,0.50541652]
[1771923807042,0.1,77.25,77.221,0.50541652]
[1771923807459,12.94515139,77.249,77.221,0.50541652]
[1771923807965,0.1,77.25,77.221,0.50541652]
[1771923808443,0.50400724,77.249,77.221,0.50541652]
[1771923808640,0.50400724,77.249,77.23,5.1611352]
[1771923809538,0.50400724,77.249,77.22,5.66655172]
[1771923810160,0.50400724,77.247,77.221,0.50541652]
[1771923810364,0.50400724,77.247,77.22,5.1611352]
[1771923810558,0.50400724,77.247,77.221,0.50541652]
[1771923812644,0.50400724,77.239,77.21,5.1611352]
[1771923812861,0.50400724,77.239,77.208,0.50541652]
[1771923813061,0.50400724,77.239,77.203,0.50541652]
[1771923813267,0.50400724,77.239,77.204,12.95269675]
[1771923814062,0.50400724,77.239,77.204,13.45811327]
[1771923814673,0.50400724,77.239,77.205,0.50541652]
[1771923815467,0.50400724,77.229,77.205,0.50541652]
[1771923815654,0.50400724,77.229,77.2,5.1611352]
[1771923815854,0.50400724,77.229,77.201,0.50541652]
[1771923817970,5.1611352,77.23,77.2,5.1611352]
[1771923817971,0.50400724,77.227,77.2,5.1611352]
[1771923818561,0.50400724,77.219,77.182,0.50541652]
[1771923818847,0.50400724,77.199,77.17,5.1611352]
[1771923819050,0.50400724,77.199,77.18,5.1611352]
[1771923819862,0.28432314,77.215,77.18,5.1611352]
[1771923820072,0.50400724,77.211,77.19,5.1611352]
[1771923820882,0.50400724,77.203,77.171,13.15612243]
[1771923821169,0.50400724,77.203,77.18,5.1611352]
[1771923822052,5.1611352,77.2,77.171,12.95810684]
[1771923822252,0.50400724,77.199,77.17,18.11944563]
[1771923823866,0.50400724,77.197,77.17,18.11944563]
[1771923825852,0.50400724,77.195,77.159,45.36087818]
[1771923826052,0.50400724,77.195,77.17,5.1611352]
[1771923828060,0.50400724,77.195,77.171,12.9582356]
[1771923829074,0.50400724,77.189,77.165,0.23677024]
[1771923829767,0.50400724,77.189,77.151,32.40393928]
[1771923829969,0.50400724,77.189,77.152,12.96142679]
[1771923830270,0.50400724,77.207,77.17,5.40249596]
[1771923830460,3.69383402,77.21,77.17,5.40249596]
[1771923830461,0.50400724,77.199,77.17,5.40249596]
[1771923831757,0.50400724,77.199,77.171,0.25039817]
[1771923833684,0.50400724,77.197,77.172,13.21728213]
[1771923833868,0.50400724,77.197,77.173,0.25921444]
[1771923834067,0.50400724,77.197,77.18,5.1611352]
[1771923834772,0.50400724,77.197,77.173,0.25921444]
[1771923837780,0.58560694,77.195,77.174,12.95773187]
[1771923838174,0.58560694,77.195,77.175,0.27878026]
[1771923840584,0.58560694,77.195,77.17,5.1611352]
[1771923840787,0.58560694,77.189,77.154,0.289752]
[1771923840992,0.58560694,77.189,77.161,0.289752]
[1771923841171,0.58560694,77.189,77.171,0.289752]
[1771923841366,0.58560694,77.194,77.171,0.289752]
[1771923842289,0.58560694,77.199,77.18,5.45446379]
[1771923843170,0.58560694,77.199,77.181,12.95655666]
[1771923845197,0.58560694,77.199,77.176,12.95739608]
[1771923845383,0.58560694,77.199,77.176,13.26120241]
[1771923845997,0.58560694,77.199,77.176,12.95739608]
[1771923848281,0.58560694,77.199,77.174,0.31396036]
[1771923850482,0.58560694,77.199,77.175,12.95756397]
[1771923850906,0.58560694,77.199,77.176,0.32373163]
[1771923852600,0.58560694,77.199,77.177,12.95722818]
[1771923854601,45.62228525,77.198,77.148,0.33624933]
[1771923854782,45.62228525,77.198,77.128,97.2409501]
[1771923854783,0.58560694,77.179,77.151,0.33624933]
[1771923855193,0.58560694,77.169,77.135,0.33624933]
[1771923855378,0.58560694,77.149,77.124,13.30238179]
[1771923855782,0.58560694,77.149,77.124,12.96613246]
[1771923856204,0.58560694,77.149,77.125,0.33929817]
[1771923858602,0.58560694,77.165,77.131,0.34823897]
[1771923858902,0.58560694,77.169,77.128,0.34823897]
[1771923859106,0.58560694,77.169,77.14,5.1611352]
[1771923859408,0.58560694,77.169,77.141,0.34823897]
[1771923862000,0.58560694,77.169,77.142,12.96310699]
[1771923862200,0.58560694,77.167,77.142,13.31995892]
[1771923862889,0.58560694,77.167,77.136,13.32362382]
[1771923863086,0.58560694,77.167,77.12,0.1]
[1771923863087,0.58560694,77.149,77.12,0.1]
[1771923863391,0.61469657,77.139,77.12,0.1]
[1771923863595,5.1611352,77.16,77.091,12.97168281]
[1771923863596,0.61469657,77.129,77.091,12.97168281]
[1771923863791,0.61469657,77.119,77.091,12.97168281]
[1771923864192,0.28432314,77.138,77.085,12.97269248]
[1771923864193,0.61469657,77.109,77.085,12.97269248]
[1771923864390,0.61469657,77.109,77.081,12.97333683]
[1771923864699,0.61469657,77.109,77.084,12.97277993]
[1771923866813,5.17703665,77.12,77.059,12.97706951]
[1771923866814,0.67979671,77.089,77.059,12.97706951]
[1771923867009,0.67979671,77.089,77.061,0.37585545]
[1771923868534,13.65191721,77.089,77.061,0.37585545]
[1771923868819,0.67979671,77.088,77.062,12.97656432]
[1771923869523,0.67979671,77.087,77.054,0.3810121]
[1771923869888,0.67979671,77.087,77.052,12.97808184]
[1771923869889,0.67979671,77.079,77.052,12.97808184]
[1771923870203,0.67979671,77.079,77.047,12.97892989]
[1771923870498,0.67979671,77.079,77.051,12.97841689]
[1771923871921,0.67979671,77.077,77.051,12.97841689]
[1771923872623,0.67979671,77.075,77.051,12.97841689]
[1771923872803,0.67979671,77.075,76.762,114.51815526]
[1771923872804,0.67979671,77.059,77.031,12.98167577]
[1771923873111,0.28432314,77.074,77.03,0.1]
[1771923873112,0.67979671,77.049,77.03,0.1]
[1771923874500,5.85683336,77.08,77.041,0.39581439]
[1771923874700,0.67979671,77.076,77.041,0.39581439]
[1771923874916,0.67979671,77.059,77.03,0.1]
[1771923875313,0.67979671,77.059,77.03,5.27703665]
[1771923875515,0.67979671,77.059,77.03,0.1]
[1771923876315,5.17703665,77.05,77.03,0.1]
[1771923876624,13.65815142,77.052,77.03,0.1]
[1771923876800,0.67979671,77.051,77.03,0.1]
[1771923877003,0.67979671,77.049,77.03,0.1]
[1771923878823,0.67979671,77.048,77.03,0.1]
[1771923879001,0.67979671,77.048,77.02,0.2]
[1771923879200,12.97888061,77.049,77.021,0.40513217]
[1771923879399,0.67979671,77.055,77.021,0.40513217]
[1771923880514,0.67979671,77.049,77.02,0.2]
[1771923880713,5.17703665,77.05,77.021,0.40963582]
[1771923880915,0.67979671,77.049,77.021,0.40963582]
[1771923881317,12.97791159,77.054,77.021,0.40963582]
[1771923881501,0.67979671,77.055,77.031,0.40963582]
[1771923882214,12.97791159,77.054,77.031,0.40963582]
[1771923882415,13.6577083,77.054,77.031,0.40963582]
[1771923882614,0.67979671,77.053,77.031,0.40963582]
[1771923882922,0.67979671,77.053,77.025,0.41404686]
[1771923883121,10.3540733,77.04,76.99,1e-08]
[1771923883302,6.05930286,77.004,77.002,0.66708449]
[1771923883616,0.67979671,77.037,76.99,5.17703666]
[1771923883807,0.67979671,77.042,76.99,1e-08]
[1771923884009,0.67979671,77.042,77.01,5.17703665]
[1771923884201,5.17703665,77.04,77.01,5.17703665]
[1771923884407,0.67979671,77.039,77.01,5.17703665]
[1771923884728,0.67979671,77.037,77.01,5.17703665]
[1771923886022,0.67979671,77.035,77.01,5.17703665]
[1771923887506,12.98020489,77.041,77.021,0.66708449]
[1771923887702,12.98020489,77.041,77.03,5.17703665]
[1771923887902,0.67979671,77.049,77.021,0.66708449]
[1771923888104,0.67979671,77.045,77.021,0.66708449]
[1771923888305,12.97858533,77.05,77.04,5.17703665]
[1771923888611,13.65838204,77.05,77.03,5.17703665]
[1771923888807,12.97858533,77.05,77.031,0.66708449]
[1771923889220,0.67979671,77.054,77.031,0.66708449]
[1771923890309,12.97808002,77.053,77.031,0.66708449]
[1771923890630,0.67979671,77.052,77.021,0.66708449]
[1771923890830,0.67979671,77.049,77.01,5.17703665]
[1771923891128,0.67979671,77.049,77.011,0.66708449]
[1771923892315,0.67979671,77.049,77.02,5.17703665]
[1771923893829,5.17703665,77.05,77.02,5.17703665]
[1771923893830,0.67979671,77.047,77.02,5.17703665]